fUST/lending_fUST_20240612
["ID","MTS","AMOUNT","RATE_DAILY","PERIOD"]
[329202918,1718176240980,-500.0,0.00016438,2]
[329202919,1718176240992,-500.0,0.00016438,2]
[329202920,1718176241004,-505.30895665,0.00016438,2]
[329202921,1718176241028,-560.7719292,0.00016438,2]
[329202922,1718176241049,-500.0,0.00016438,2]
[329202923,1718176241063,-500.0,0.00016438,2]
[329202924,1718176241076,-500.0,0.00016438,2]
[329202925,1718176241089,-500.0,0.00016438,2]
[329202926,1718176241102,-587.39997462,0.00016438,2]
[329202927,1718176241113,-500.0,0.00016438,2]
[329202928,1718176241125,-500.0,0.00016438,2]
[329202929,1718176241137,-500.0,0.00016438,2]
[329202930,1718176241148,-500.0,0.00016438,2]
[329202932,1718176241160,-500.69652808,0.00016438,2]
[329202936,1718176241184,-501.74210217,0.00016438,2]
[329202938,1718176241197,-504.49629429,0.00016438,2]
[329202939,1718176241209,-500.0,0.00016438,2]
[329202941,1718176241223,-500.96478748,0.00016438,2]
[329202943,1718176241237,-500.0,0.00016438,2]
[329202945,1718176241250,-530.71258531,0.00016438,2]
[329202947,1718176241262,-500.0,0.00016438,2]
[329202949,1718176241273,-502.92764555,0.00016438,2]
[329202951,1718176241284,-514.89471071,0.00016438,2]
[329202953,1718176241296,-500.0,0.00016438,2]
[329202955,1718176241308,-500.0,0.00016438,2]
[329202957,1718176241319,-500.0,0.00016438,2]
[329202959,1718176241330,-500.0,0.00016438,2]
[329202961,1718176241341,-1256.0,0.00016438,2]
[329202963,1718176241358,-505.20985482,0.00016438,2]
[329202965,1718176241397,-500.0,0.00016438,2]
[329202967,1718176241408,-503.78921423,0.00016438,2]
[329202969,1718176241419,-500.0,0.00016438,2]
[329202971,1718176241430,-500.0,0.00016438,2]
[329202973,1718176241442,-500.0,0.00016438,2]
[329202976,1718176241455,-500.0,0.00016438,2]
[329202978,1718176241468,-500.0,0.00016438,2]
[329202980,1718176241481,-500.0,0.00016438,2]
[329202982,1718176241497,-500.0,0.00016438,2]
[329202984,1718176241510,-500.0,0.00016438,2]
[329202987,1718176241522,-500.0,0.00016438,2]
[329202990,1718176241545,-500.0,0.00016438,2]
[329202992,1718176241561,-500.0,0.00016438,2]
[329202994,1718176241575,-500.0,0.00016438,2]
[329202996,1718176241587,-500.0,0.00016438,2]
[329202999,1718176241607,-462.2779702,0.00016438,2]
[329203001,1718176241619,-500.0,0.00016438,2]
[329203005,1718176241649,-500.0,0.00016438,2]
[329203006,1718176241666,-500.0,0.00016438,2]
[329203007,1718176241685,-500.0,0.00016438,2]
[329203008,1718176241697,-500.0,0.00016438,2]
[329203009,1718176241709,-450.50871335,0.00016438,2]
[329203010,1718176241729,-503.95900646,0.00016438,2]
[329203011,1718176241752,-500.0,0.00016438,2]
[329203012,1718176241772,-504.62764149,0.00016438,2]
[329203013,1718176241812,-500.0,0.00016438,2]
[329203014,1718176241833,-504.03904831,0.00016438,2]
[329203015,1718176241845,-616.38783419,0.00016438,2]
[329203016,1718176241860,-500.0,0.00016438,2]
[329203017,1718176241871,-500.0,0.00016438,2]
[329203018,1718176241910,-500.0,0.00016438,2]
[329203019,1718176241922,-500.0,0.00016438,2]
[329203020,1718176241935,-500.0,0.00016438,2]
[329203021,1718176241947,-450.24372524,0.00016438,2]
[329203022,1718176241957,-500.0,0.00016438,2]
[329203023,1718176241969,-500.0,0.00016438,2]
[329203024,1718176241980,-500.0,0.00016438,2]
[329203025,1718176241990,-500.0,0.00016438,2]
[329203026,1718176242000,-500.0,0.00016438,2]
[329203027,1718176242013,-502.6169118,0.00016438,2]
[329203028,1718176242023,-500.0,0.00016438,2]
[329203029,1718176242034,-500.0,0.00016438,2]
[329203030,1718176242047,-500.0,0.00016438,2]
[329203032,1718176242067,-500.0,0.00016438,2]
[329203033,1718176242078,-555.48909075,0.00016438,2]
[329203034,1718176242090,-527.68990037,0.00016438,2]
[329203035,1718176242108,-503.97175668,0.00016438,2]
[329203036,1718176242123,-500.0,0.00016438,2]
[329203037,1718176242139,-500.0,0.00016438,2]
[329203038,1718176242174,-500.0,0.00016438,2]
[329203039,1718176242198,-511.55310299,0.00016438,2]
[329203040,1718176242217,-501.46359089,0.00016438,2]
[329203041,1718176242228,-500.0,0.00016438,2]
[329203042,1718176242256,-333.0922486,0.00016438,2]
[329203043,1718176242270,-500.0,0.00016438,2]
[329203044,1718176242285,-500.0,0.00016438,2]
[329203045,1718176242304,-500.0,0.00016438,2]
[329203046,1718176242334,-504.36257956,0.00016438,2]
[329203047,1718176242346,-500.88011306,0.00016438,2]
[329203048,1718176242385,-500.0,0.00016438,2]
[329203049,1718176242411,-500.0,0.00016438,2]
[329203050,1718176242422,-818.57,0.00016438,2]
[329203051,1718176242440,-500.0,0.00016438,2]
[329203052,1718176242454,-500.0,0.00016438,2]
[329203053,1718176242469,-513.26649873,0.00016438,2]
[329203054,1718176242481,-500.0,0.00016438,2]
[329203055,1718176242509,-500.0,0.00016438,2]
[329203056,1718176242521,-155.59364997,0.00016438,2]
[329203057,1718176242539,-500.0,0.00016438,2]
[329203058,1718176242564,-507.14075811,0.00016438,2]
[329203059,1718176242588,-500.0,0.00016438,2]
[329203060,1718176242599,-500.0,0.00016438,2]
[329203061,1718176242616,-500.0,0.00016438,2]
[329203062,1718176242637,-500.0,0.00016438,2]
[329203063,1718176242654,-500.0,0.00016438,2]
[329203064,1718176242668,-500.0,0.00016438,2]
[329203065,1718176242687,-500.0,0.00016438,2]
[329203066,1718176242704,-500.0,0.00016438,2]
[329203067,1718176242716,-500.0,0.00016438,2]
[329203068,1718176242730,-500.0,0.00016438,2]
[329203069,1718176242741,-229.78721247,0.00016438,2]
[329203070,1718176242752,-500.0,0.00016438,2]
[329203071,1718176242766,-500.0,0.00016438,2]
[329203072,1718176242780,-455.19450785,0.00016438,2]
[329203073,1718176242792,-500.0,0.00016438,2]
[329203074,1718176242805,-1369.51,0.00016438,2]
[329203075,1718176242818,-514.63232221,0.00016438,2]
[329203076,1718176242830,-500.0,0.00016438,2]
[329203077,1718176242841,-626.44,0.00016438,2]
[329203078,1718176242852,-500.0,0.00016438,2]
[329203079,1718176242863,-500.0,0.00016438,2]
[329203080,1718176242877,-763.33,0.00016438,2]
[329203081,1718176242891,-500.0,0.00016438,2]
[329203082,1718176242906,-500.0,0.00016438,2]
[329203083,1718176242924,-500.0,0.00016438,2]
[329203084,1718176242935,-595.76374772,0.00016438,2]
[329203085,1718176242949,-234.64588568,0.00016438,2]
[329203086,1718176242962,-500.0,0.00016438,2]
[329203087,1718176242976,-500.0,0.00016438,2]
[329203088,1718176242987,-500.0,0.00016438,2]
[329203089,1718176243001,-500.0,0.00016438,2]
[329203090,1718176243013,-500.0,0.00016438,2]
[329203091,1718176243029,-500.0,0.00016438,2]
[329203092,1718176243040,-500.0,0.00016438,2]
[329203093,1718176243055,-3214.39,0.00016438,2]
[329203094,1718176243067,-500.0,0.00016438,2]
[329203095,1718176243079,-500.0,0.00016438,2]
[329203096,1718176243093,-500.0,0.00016438,2]
[329203097,1718176243103,-398.79667137,0.00016438,2]
[329203098,1718176243119,-1152.1,0.00016438,2]
[329203099,1718176243131,-503.66219178,0.00016438,2]
[329203100,1718176243146,-500.0,0.00016438,2]
[329203101,1718176243159,-500.0,0.00016438,2]
[329203102,1718176243170,-500.0,0.00016438,2]
[329203103,1718176243180,-500.0,0.00016438,2]
[329203104,1718176243190,-2280.54,0.00016438,2]
[329203105,1718176243201,-500.0,0.00016438,2]
[329203106,1718176243215,-500.0,0.00016438,2]
[329203107,1718176243227,-686.15,0.00016438,2]
[329203108,1718176243238,-500.0,0.00016438,2]
[329203109,1718176243248,-500.0,0.00016438,2]
[329203110,1718176243264,-500.0,0.00016438,2]
[329203111,1718176243275,-500.0,0.00016438,2]
[329203112,1718176243288,-506.08390573,0.00016438,2]
[329203113,1718176243301,-500.0,0.00016438,2]
[329203114,1718176243313,-500.0,0.00016438,2]
[329203115,1718176243326,-500.0,0.00016438,2]
[329203116,1718176243337,-3022.26,0.00016438,2]
[329203117,1718176243350,-500.0,0.00016438,2]
[329203118,1718176243389,-500.0,0.00016438,2]
[329203119,1718176243400,-500.0,0.00016438,2]
[329203120,1718176243412,-167.38875341,0.00016438,2]
[329203121,1718176243423,-500.0,0.00016438,2]
[329203122,1718176243434,-319.30675189,0.00016438,2]
[329203123,1718176243451,-500.0,0.00016438,2]
[329203125,1718176243471,-500.27021647,0.00016438,2]
[329203126,1718176243482,-570.88117633,0.00016438,2]
[329203127,1718176243497,-500.0,0.00016438,2]
[329203128,1718176243510,-500.0,0.00016438,2]
[329203129,1718176243521,-500.0,0.00016438,2]
[329203130,1718176243536,-500.0,0.00016438,2]
[329203131,1718176243553,-500.0,0.00016438,2]
[329203132,1718176243565,-168.829355,0.00016438,2]
[329203133,1718176243586,-500.0,0.00016438,2]
[329203134,1718176243608,-502.25197149,0.00016438,2]
[329203135,1718176243621,-500.0,0.00016438,2]
[329203136,1718176243634,-500.0,0.00016438,2]
[329203137,1718176243651,-500.0,0.00016438,2]
[329203138,1718176243676,-500.0,0.00016438,2]
[329203139,1718176243693,-500.0,0.00016438,2]
[329203140,1718176243709,-500.0,0.00016438,2]
[329203141,1718176243725,-516.86107398,0.00016438,2]
[329203142,1718176243742,-506.32843551,0.00016438,2]
[329203143,1718176243767,-616.3580274,0.00016438,2]
[329203144,1718176243799,-500.0,0.00016438,2]
[329203145,1718176243812,-809.63,0.00016438,2]
[329203146,1718176243824,-500.0,0.00016438,2]
[329203147,1718176243836,-500.0,0.00016438,2]
[329203148,1718176243849,-500.0,0.00016438,2]
[329203149,1718176243865,-500.0,0.00016438,2]
[329203150,1718176243879,-503.04023368,0.00016438,2]
[329203151,1718176243891,-344.81526891,0.00016438,2]
[329203152,1718176243902,-500.0,0.00016438,2]
[329203153,1718176243913,-275.71709057,0.000165,2]
[329203154,1718176243929,-1121.85929929,0.0001652,2]
[329203155,1718176243940,-500.0,0.00016711,2]
[329203156,1718176243963,-500.0,0.00016711,2]
[329203157,1718176243977,-504.55603488,0.00016712,2]
[329203158,1718176243988,-500.0,0.00016712,2]
[329203159,1718176243999,-500.0,0.00016712,2]
[329203160,1718176244013,-500.0,0.00016712,2]
[329203161,1718176244024,-500.0,0.00016712,2]
[329203162,1718176244034,-500.0,0.00016712,2]
[329203163,1718176244048,-500.0,0.00016712,4]
[329203164,1718176244060,-250.0,0.00016712,2]
[329203165,1718176244072,-500.0,0.00016712,2]
[329203166,1718176244084,-500.0,0.00016712,2]
[329203167,1718176244094,-1256.0,0.00016712,2]
[329203168,1718176244105,-500.0,0.00016712,2]
[329203169,1718176244119,-500.0,0.00016712,2]
[329203170,1718176244141,-505.60901484,0.00016712,2]
[329203171,1718176244154,-502.21572097,0.00016712,2]
[329203172,1718176244173,-500.0,0.00016712,2]
[329203173,1718176244185,-500.0,0.00016712,2]
[329203174,1718176244196,-500.0,0.00016712,2]
[329203175,1718176244206,-500.0,0.00016712,2]
[329203176,1718176244218,-268.79483604,0.00016712,2]
[329203177,1718176244231,-500.0,0.00016712,2]
[329203178,1718176244241,-500.0,0.00016712,2]
[329203179,1718176244252,-500.0,0.00016712,2]
[329203180,1718176244262,-500.0,0.00016712,2]
[329203181,1718176244271,-503.20458748,0.00016712,2]
[329203182,1718176244281,-500.0,0.00016712,2]
[329203183,1718176244291,-500.0,0.00016712,2]
[329203184,1718176244302,-502.46836323,0.00016712,2]
[329203185,1718176244312,-818.57,0.00016712,2]
[329203186,1718176244323,-500.0,0.00016712,2]
[329203187,1718176244334,-510.24599889,0.00016712,2]
[329203188,1718176244346,-500.0,0.00016712,2]
[329203189,1718176244366,-565.46311515,0.00016712,2]
[329203190,1718176244391,-500.0,0.00016712,2]
[329203191,1718176244401,-500.0,0.00016712,2]
[329203192,1718176244411,-500.0,0.00016712,2]
[329203193,1718176244424,-500.0,0.00016712,2]
[329203194,1718176244435,-500.0,0.00016712,2]
[329203195,1718176244447,-500.0,0.00016712,2]
[329203196,1718176244459,-500.0,0.00016712,2]
[329203197,1718176244471,-1369.51,0.00016712,2]
[329203198,1718176244481,-501.88713346,0.00016712,2]
[329203199,1718176244491,-626.44,0.00016712,2]
[329203200,1718176244503,-500.0,0.00016712,2]
[329203201,1718176244514,-763.33,0.00016712,2]
[329203202,1718176244525,-500.0,0.00016712,2]
[329203203,1718176244535,-500.0,0.00016712,2]
[329203204,1718176244558,-500.0,0.00016712,2]
[329203205,1718176244568,-500.0,0.00016712,2]
[329203206,1718176244580,-3214.39,0.00016712,2]
[329203207,1718176244590,-500.0,0.00016712,2]
[329203208,1718176244603,-500.0,0.00016712,2]
[329203209,1718176244613,-500.0,0.00016712,2]
[329203210,1718176244623,-1152.1,0.00016712,2]
[329203211,1718176244637,-2280.54,0.00016712,2]
[329203212,1718176244652,-686.15,0.00016712,2]
[329203213,1718176244663,-500.0,0.00016712,2]
[329203214,1718176244681,-3022.26,0.00016712,2]
[329203215,1718176244692,-502.72338017,0.00016712,2]
[329203216,1718176244702,-500.0,0.00016712,2]
[329203217,1718176244712,-500.0,0.00016712,2]
[329203218,1718176244726,-500.0,0.00016712,2]
[329203219,1718176244736,-526.29441157,0.00016712,2]
[329203220,1718176244746,-500.0,0.00016712,2]
[329203221,1718176244757,-500.58069483,0.00016712,2]
[329203222,1718176244766,-500.0,0.00016712,2]
[329203223,1718176244777,-809.63,0.00016712,2]
[329203224,1718176244787,-500.0,0.00016712,2]
[329203225,1718176244798,-2000.0,0.00016886,2]
[329203226,1718176244811,-500.0,0.00016984,2]
[329203227,1718176244821,-500.0,0.00016985,2]
[329203228,1718176244832,-500.0,0.00016986,2]
[329203229,1718176244842,-500.0,0.00016986,2]
[329203230,1718176244853,-500.0,0.00016986,4]
[329203231,1718176244865,-250.0,0.00016986,2]
[329203232,1718176244876,-500.0,0.00016986,2]
[329203233,1718176244887,-1256.0,0.00016986,2]
[329203234,1718176244899,-500.0,0.00016986,2]
[329203235,1718176244910,-500.0,0.00016986,2]
[329203236,1718176244921,-500.0,0.00016986,2]
[329203237,1718176244934,-500.0,0.00016986,2]
[329203238,1718176244944,-818.57,0.00016986,2]
[329203239,1718176244955,-500.0,0.00016986,2]
[329203240,1718176244967,-500.0,0.00016986,2]
[329203241,1718176244977,-500.0,0.00016986,2]
[329203242,1718176244988,-500.0,0.00016986,2]
[329203243,1718176244998,-500.0,0.00016986,2]
[329203244,1718176245009,-500.0,0.00016986,2]
[329203245,1718176245019,-500.0,0.00016986,2]
[329203246,1718176245030,-1369.51,0.00016986,2]
[329203247,1718176245040,-626.44,0.00016986,2]
[329203248,1718176245051,-763.33,0.00016986,2]
[329203249,1718176245061,-502.45741649,0.00016986,2]
[329203250,1718176245071,-500.0,0.00016986,2]
[329203251,1718176245082,-500.0,0.00016986,2]
[329203252,1718176245093,-500.0,0.00016986,2]
[329203253,1718176245103,-3214.39,0.00016986,2]
[329203254,1718176245117,-500.0,0.00016986,2]
[329203255,1718176245127,-500.0,0.00016986,2]
[329203256,1718176245138,-1152.1,0.00016986,2]
[329203257,1718176245150,-2280.54,0.00016986,2]
[329203258,1718176245161,-686.15,0.00016986,2]
[329203259,1718176245173,-500.0,0.00016986,2]
[329203260,1718176245184,-3022.26,0.00016986,2]
[329203261,1718176245194,-505.67910671,0.00016986,2]
[329203262,1718176245204,-500.0,0.00016986,2]
[329203263,1718176245217,-500.0,0.00016986,2]
[329203264,1718176245227,-809.63,0.00016986,2]
[329203265,1718176245238,-1000.0,0.00017,2]
[329203266,1718176245248,-1000.0,0.00017,2]
[329203267,1718176245259,-500.0,0.00017259,2]
[329203268,1718176245268,-500.0,0.0001726,4]
[329203269,1718176245279,-250.0,0.0001726,2]
[329203270,1718176245289,-1256.0,0.0001726,2]
[329203271,1718176245300,-277.27400704,0.0001726,2]
[329203272,1718176245313,-500.0,0.0001726,2]
[329203273,1718176245324,-500.0,0.0001726,2]
[329203274,1718176245336,-818.57,0.0001726,2]
[329203275,1718176245349,-500.0,0.0001726,2]
[329203276,1718176245383,-500.0,0.0001726,2]
[329203277,1718176245396,-500.0,0.0001726,2]
[329203278,1718176245407,-500.0,0.0001726,2]
[329203279,1718176245418,-500.0,0.0001726,2]
[329203280,1718176245432,-1369.51,0.0001726,2]
[329203281,1718176245445,-626.44,0.0001726,2]
[329203282,1718176245456,-763.33,0.0001726,2]
[329203283,1718176245467,-505.14857162,0.0001726,2]
[329203284,1718176245478,-500.0,0.0001726,2]
[329203285,1718176245488,-500.0,0.0001726,2]
[329203286,1718176245499,-3214.39,0.0001726,2]
[329203287,1718176245511,-500.0,0.0001726,2]
[329203288,1718176245536,-500.0,0.0001726,2]
[329203289,1718176245562,-1152.1,0.0001726,2]
[329203290,1718176245582,-2280.54,0.0001726,2]
[329203291,1718176245604,-686.15,0.0001726,2]
[329203292,1718176245616,-500.0,0.0001726,2]
[329203293,1718176245632,-3022.26,0.0001726,2]
[329203294,1718176245651,-500.0,0.0001726,2]
[329203295,1718176245663,-500.0,0.0001726,2]
[329203296,1718176245681,-809.63,0.0001726,2]
[329203297,1718176245691,-500.0,0.00017533,2]
[329203298,1718176245702,-500.0,0.00017533,2]
[329203299,1718176245712,-500.0,0.00017534,4]
[329203300,1718176245726,-250.0,0.00017534,2]
[329203301,1718176245738,-1256.0,0.00017534,2]
[329203302,1718176245752,-500.0,0.00017534,2]
[329203303,1718176245765,-500.0,0.00017534,2]
[329203304,1718176245777,-818.57,0.00017534,2]
[329203305,1718176245796,-500.0,0.00017534,2]
[329203306,1718176245813,-500.0,0.00017534,2]
[329203307,1718176245964,-500.0,0.00017534,2]
[329203308,1718176245977,-500.0,0.00017534,2]
[329203309,1718176245988,-1369.51,0.00017534,2]
[329203310,1718176246006,-626.44,0.00017534,2]
[329203311,1718176246026,-763.33,0.00017534,2]
[329203312,1718176246040,-508.594545,0.00017534,2]
[329203313,1718176246068,-500.0,0.00017534,2]
[329203314,1718176246081,-3214.39,0.00017534,2]
[329203315,1718176246097,-500.0,0.00017534,2]
[329203316,1718176246107,-500.0,0.00017534,2]
[329203317,1718176246118,-1152.1,0.00017534,2]
[329203318,1718176246128,-2280.54,0.00017534,2]
[329203319,1718176246140,-686.15,0.00017534,2]
[329203320,1718176246167,-500.0,0.00017534,2]
[329203321,1718176246182,-3022.26,0.00017534,2]
[329203322,1718176246195,-500.0,0.00017534,2]
[329203323,1718176246218,-500.0,0.00017534,2]
[329203324,1718176246230,-809.63,0.00017534,2]
[329203325,1718176246241,-520.33227345,0.00017807,2]
[329203326,1718176246251,-500.0,0.00017808,4]
[329203327,1718176246279,-250.0,0.00017808,2]
[329203328,1718176246297,-1256.0,0.00017808,2]
[329203329,1718176246312,-500.0,0.00017808,2]
[329203330,1718176246324,-500.0,0.00017808,2]
[329203331,1718176246335,-818.57,0.00017808,2]
[329203332,1718176246346,-500.0,0.00017808,2]
[329203333,1718176246386,-500.0,0.00017808,2]
[329203334,1718176246395,-500.0,0.00017808,2]
[329203335,1718176246406,-500.0,0.00017808,2]
[329203336,1718176246416,-1369.51,0.00017808,2]
[329203337,1718176246427,-626.44,0.00017808,2]
[329203338,1718176246439,-763.33,0.00017808,2]
[329203339,1718176246450,-500.0,0.00017808,2]
[329203340,1718176246467,-3214.39,0.00017808,2]
[329203341,1718176246489,-500.0,0.00017808,2]
[329203343,1718176246523,-500.0,0.00017808,2]
[329203344,1718176246540,-1152.1,0.00017808,2]
[329203345,1718176246550,-2280.54,0.00017808,2]
[329203346,1718176246568,-686.15,0.00017808,2]
[329203347,1718176246584,-3022.26,0.00017808,2]
[329203348,1718176246599,-500.0,0.00017808,2]
[329203349,1718176246615,-448.51957532,0.00017808,2]
[329203350,1718176246756,-51.48042468,0.00017808,2]
[329203351,1718176246773,-809.63,0.00017808,2]
[329203352,1718176246784,-7176.44592903,0.00017898,2]
[329203372,1718177011613,21056.03729767,0.00017534,15]
[329203375,1718177131980,10528.01864884,0.00017534,15]
[329203384,1718177251660,5264.00932442,0.00017534,15]
[329203385,1718177253070,2000.0,0.00016,6]
[329203389,1718177371828,2632.00466221,0.0001726,15]
[329203417,1718177434569,-300.0,0.00015158,2]
[329203418,1718177434580,-336.53625817,0.00015159,2]
[329203464,1718177443113,-24563.46374183,0.00015159,2]
[329203466,1718177443124,-162.257584,0.00015409,2]
[329203467,1718177443134,-33112.59449414,0.00016433,2]
[329203471,1718177443629,-255.34213777,0.00016433,2]
[329203474,1718177444058,-10289.22655987,0.00016433,2]
[329203476,1718177444074,-278.43696421,0.00016433,2]
[329203478,1718177444085,-639.6022559,0.00016434,2]
[329203479,1718177444096,-585.02379621,0.00016434,2]
[329203480,1718177444110,-521.25002813,0.00016434,2]
[329203481,1718177444122,-2271.1505096,0.00016434,2]
[329203482,1718177444132,-2683.16682461,0.00016435,2]
[329203483,1718177444143,-1492.40131974,0.00016436,2]
[329203484,1718177444155,-24368.89890894,0.00016436,2]
[329203489,1718177449009,-464.18059662,0.00016436,2]
[329203490,1718177449023,-3553.18697363,0.00016436,2]
[329203491,1718177449034,-500.0,0.00016438,2]
[329203492,1718177449045,-595.62849973,0.00016438,2]
[329203493,1718177449066,-500.0,0.00016438,2]
[329203494,1718177449094,-500.0,0.00016438,2]
[329203495,1718177449120,-550.66,0.00016438,2]
[329203496,1718177449155,-500.0,0.00016438,2]
[329203497,1718177449168,-500.0,0.00016438,2]
[329203498,1718177449182,-500.0,0.00016438,2]
[329203499,1718177449199,-613.93,0.00016438,2]
[329203500,1718177449213,-500.0,0.00016438,2]
[329203501,1718177449231,-1027.13,0.00016438,2]
[329203502,1718177449253,-572.5,0.00016438,2]
[329203503,1718177449273,-170.6,0.00016438,2]
[329203504,1718177449293,-500.0,0.00016438,4]
[329203505,1718177449325,-500.0,0.00016438,2]
[329203506,1718177449344,-459.35781149,0.00016438,2]
[329203507,1718177449375,-40.64218851,0.00016438,2]
[329203508,1718177449397,-2942.88,0.00016438,2]
[329203509,1718177449417,-718.44693543,0.00016438,2]
[329203511,1718177492375,1316.00233111,0.000189,15]
[329203512,1718177504493,168.61,0.00022,120]
[329203514,1718177611441,7382.54605344,0.000189,15]
[329203568,1718177699119,151.01812217,0.00019941,30]
[329203569,1718177699382,151.01812217,0.00019543,120]
[329203571,1718177731906,255.98787779,0.000189,15]
[329203572,1718177830764,16611.81035322,0.00025,60]
[329203573,1718177831465,206.62708153,0.0002,120]
[329203574,1718177834458,17801.38166262,0.00025,120]
[329203579,1718178256339,151.01963255,0.00019901,30]
[329203580,1718178256594,151.01963255,0.00019503,120]
[329203587,1718178602093,151.01812217,0.00020033,30]
[329203588,1718178602177,151.01812217,0.00019633,120]
[329203640,1718178639730,-1264.77875999,0.00014736,2]
[329203641,1718178639746,-3486.36651588,0.00014736,2]
[329203642,1718178639758,-300.0,0.00014736,2]
[329203643,1718178639769,-1882.98290315,0.00014737,2]
[329203644,1718178639785,-1474.38888117,0.00014737,2]
[329203645,1718178639805,-2022.41792782,0.00014737,2]
[329203646,1718178640257,-4263.38023119,0.00014737,2]
[329203647,1718178640272,-8172.25461492,0.00014737,2]
[329203652,1718178642419,-2939.24571115,0.00014737,2]
[329203667,1718178642842,-619.22052004,0.00014737,2]
[329203669,1718178642856,-427.63664462,0.00014737,2]
[329203671,1718178642869,-499.12138624,0.00014737,2]
[329203672,1718178642881,-162.257585,0.00014865,2]
[329203673,1718178642891,-2685.70176816,0.0001552,2]
[329203674,1718178642902,-4475.56497982,0.00015521,2]
[329203675,1718178642912,-420.0,0.00016132,2]
[329203676,1718178642923,-2267.19834541,0.00016385,2]
[329203681,1718178651988,273.37336231,9.9e-05,2]
[329203682,1718178660552,273.37336231,9.9e-05,2]
[329203683,1718178662539,680.35538131,0.00016437,120]
[329203684,1718178668989,273.37336231,9.9e-05,2]
[329203685,1718178675637,524.28276113,0.00016436,30]
[329203686,1718178675679,500.0,0.00022,120]
[329203687,1718178676425,500.0,0.00022,120]
[329203688,1718178677252,500.0,0.00022,120]
[329203689,1718178678400,500.0,0.00022,120]
[329203690,1718178679205,500.0,0.00022,120]
[329203691,1718178681640,273.37336231,9.9e-05,2]
[329203692,1718178681700,500.0,0.00022,120]
[329203693,1718178682662,500.0,0.00022,120]
[329203694,1718178683786,500.0,0.00022,120]
[329203695,1718178684887,500.0,0.00022,120]
[329203696,1718178685668,500.0,0.00022,120]
[329203697,1718178686423,500.0,0.00022,120]
[329203698,1718178686478,680.35538131,0.00016436,120]
[329203699,1718178687175,500.0,0.00022,120]
[329203700,1718178688057,500.0,0.00022,120]
[329203701,1718178688686,500.0,0.00022,120]
[329203702,1718178689471,500.0,0.00022,120]
[329203703,1718178690248,500.0,0.00022,120]
[329203704,1718178690372,273.37336231,9.9e-05,2]
[329203705,1718178691068,500.0,0.00022,120]
[329203706,1718178691845,500.0,0.00022,120]
[329203707,1718178692666,500.0,0.00022,120]
[329203708,1718178693433,500.0,0.00022,120]
[329203709,1718178694557,500.0,0.00022,120]
[329203710,1718178695340,370.03,0.00022,120]
[329203711,1718178695633,380.6379583,0.00016436,30]
[329203712,1718178698486,273.37336231,9.9e-05,2]
[329203713,1718178707261,273.37336231,9.9e-05,2]
[329203714,1718178708474,354.46515366,0.00016436,120]
[329203715,1718178715409,273.37336231,9.9e-05,2]
[329203716,1718178717073,262.16993722,9.999e-05,2]
[329203717,1718178724129,273.37336231,9.9e-05,2]
[329203718,1718178728493,354.46515366,0.00016435,120]